{"text_format":"3","workbook":"xlsx","n_sheets":1,"sheets":["Vorschlag"],"not_rendered":{"defined_names":1},"read":"whole","date_system":"1900"}

{"sheet":"Vorschlag","index":0,"n_rows":45,"n_cols":5,"rows_kept":45,"merged":[[0,0,0,3],[3,0,3,1],[4,0,4,1],[5,0,5,1],[6,0,6,1],[7,0,7,1],[8,0,8,1],[9,0,9,1],[10,0,10,1],[13,0,13,3],[15,0,15,3],[21,0,21,3],[24,0,24,3],[27,0,27,3],[31,0,31,3],[32,4,33,5],[34,4,34,5],[35,0,35,3],[36,1,38,1],[36,2,38,2],[36,3,38,3],[36,4,36,5],[37,4,37,5],[39,0,39,3],[40,4,41,5],[41,0,41,3],[42,4,44,5]]}
["Projekt: …"]
[]
["FORMALKRITERIEN",null,"stop","go"]
["Projekt leistet einen Beitrag zur Zielerreichung der LES.\nOutcomes des Projekts entsprechen einem oder mehreren Outputs eines AF",null,"kein Beitrag","nachvollziehbar"]
["Projekt leistet einen Beitrag zur Umsetzung des Aktionsplans.\nProjekte sind mit den Aktionsfeldthemen kompatibel",null,"kein Beitrag","nachvollziehbar"]
["Vergaberecht wird angewendet (sofern relevant) Projektwerber unterzeichnet Formular, in dem er sich zur Einhaltung des Vergaberechts verpflichtet.",null,"nein","ja"]
["Fachliche Qualität des Projektansatzes: Schlüssige Argumentation, wie geförderte Maßnahmen der Erreichung der Projektziele dienen",null,"nicht nachvollziehbar","nachvollziehbar"]
["Bei Projekten mit Marktorientierung und Wettbewerbsrelevanz ist ein kommentierter Finanzplan von 3-5 Jahren erstellt",null,"nein","ja"]
["Die fachliche Qualität der Akteure zur Umsetzung der geplanten Maßnahmen ist nachvollziehbar und ausreichend oder Qualifizierung ist Teil des Projekts",null,"nein","ja"]
["Nur für Anbahnungsprojekte nationaler und transnationaler Kooperationen: Umsetzung eines konkreten Projekts ist geplant ",null,"nein","ja"]
["Das Projekt entspricht einem der generellen Ausrichtungen / Fokus der LES\nLebenswert, Kostbar, Erlebenswert, Achtsamkeit",null,"nein","ja"]
[]
["QUALITÄTSKRITERIEN","1/0","Gewicht","Punkte"]
["Ökologische Nachhaltigkeit"]
["Durch die Ziele eine Entlastung der Umwelt zu erwarten",null,1,{"$f":"IF(B15=1,1,0)","v":0}]
["Klimaschutz und Anpassung an den Klimawandel"]
["Ein Beitrag zum Klimaschutz wird  geleistet",null,0.5,{"$f":"IF(B17=1,0.5,0)","v":0}]
["Ein Beitrag zur Anpassung an den Klimawandel  wird geleistet",null,0.5,{"$f":"IF(B18=1,0.5,0)","v":0}]
["Sozial Nachhaltigkeit"]
["Gesellschaftlichen Zusammenhalt unter der regionalen Bevölkerung wird unterstützt",null,0.5,{"$f":"IF(B20=1,0.5,0)","v":0}]
["Das Projekt richtet sich besonders an zumindest eine der folgenden Personengruppen: Jugendliche, Frauen, Migranten, Menschen mit besonderen Bedürfnissen, Personen 50+ ",null,0.5,{"$f":"IF(B21=1,0.5,0)","v":0}]
["Ökonomische Nachhaltigkeit"]
["kann sich nach dem Förderzeitraum wirtschaftlich selbst tragen ",null,0.5,{"$f":"IF(B23=1,0.5,0)","v":0}]
["positive Auswirkungen auf die Beschäftigungssituation in der Region",null,0.5,{"$f":"IF(B24=1,0.5,0)","v":0}]
["Multisektoralität"]
["mindestens 2 Personen aus  unterschiedlichen gesellschaftlichen Bereichen/Wirtschaftssektoren arbeiten zusammen",null,0.5,{"$f":"IF(B26=1,0.5,0)","v":0}]
["Mindestens 2 gesellschaftliche Bereiche/Wirtschaftssektoren profitieren von dem Projekt",null,0.5,{"$f":"IF(B27=1,0.5,0)","v":0}]
["Innovation (entweder / oder !!!)"]
["etwas Neues wird geschaffen, das vermutlich so noch nirgends vorkommt und eine absolut neue Variante darstellt",null,0.5,{"$f":"IF(B29=1,0.5,0)","v":0}]
["etwas wird  Neue geschaffen, das zwar eine Kombination von Bekannten ist, aber in dieser Kombination eine neue Variante darstellt",null,0.3,{"$f":"IF(B30=1,0.3,0)","v":0}]
["etwas Neues wird  geschaffen, das zwar woanders schon gemacht wird, aber im eigenen System noch nicht angewendet wird",null,0.2,{"$f":"IF(B31=1,0.2,0)","v":0}]
["Kooperation"]
["Es arbeiten mehrere unterschiedliche regionale Akteure/Akteursgruppen zusammen",null,0.2,{"$f":"IF(B33=1,0.2,0)","v":0},"Gesamtprojekt-volumen"]
["Es arbeiten regionale Akteuere mit Akteuren aus anderen Regionen zusammen ",null,0.3,{"$f":"IF(B34=1,0.3,0)","v":0}]
["Im Projekt arbeiten regionale Akteure mit Akteuren aus anderen Länderen zusammen",null,0.5,{"$f":"IF(B35=1,0.5,0)","v":0}]
["Gleichstellungsorientierung"]
["In den Bedarfen (Ausgangsituation) der Zielgruppe wird differenziert auf Frauen und Männer in verschiednen Altersgruppen eingegangen",null,1,{"$f":"IF(B37=1,1,0)","v":0},"Vorschlag Förderquote"]
["Es beinhaltet ein spezifisches Ziel  zur Förderung der Chanchengleichheit"]
["Es beinhaltet Maßnahmen zur Förderung von Chancengleichheit"]
["Dauerhaftigkeit"]
["Es sind Maßnahmen vorgesehen, um die Wirkung des Projekts dauerhaft sicherzustellen",null,1,{"$f":"IF(B41=1,1,0)","v":0},"Förderung"]
["Terrtitorale Breitenwirksamkeit"]
["Die Projektwirkung übersteigt zumindest eine Gemeinde",null,0.2,{"$f":"IF(B43=1,0.2,0)","v":0},{"$f":"E35*E38","v":{"v":0,"d":"€ 0.00"}}]
["die Projektwirkung zeigt sich in einem Großteil der LAG",null,0.8,{"$f":"IF(B44=1,0.8,0)","v":0}]
["Summe - Minimum 3 Punkte",null,{"$f":"C44+C43+C41+C37+C35+C29+C27+C26+C24+C23+C21+C20+C18+C17+C15+C34+C33","v":9.5},{"$f":"SUM(D14:D44)","v":0}]